fUST/lending_fUST_20240118
["ID","MTS","AMOUNT","RATE_DAILY","PERIOD"]
[312047135,1705572641322,-151.0,0.0003149,2]
[312047136,1705572641331,-155.0,0.00031507,2]
[312047137,1705572641340,-9139.20293279,0.00031759,7]
[312047138,1705572641349,-250.2104,0.00031781,2]
[312047139,1705572641358,-506.733514,0.00031781,2]
[312047140,1705572641368,-1400.0,0.00031917,2]
[312047141,1705572641377,-94816.89217279,0.00032,15]
[312047142,1705572641386,-2000.0,0.00032,8]
[312047143,1705572641395,-2000.0,0.00032,8]
[312047144,1705572641407,-502.016768,0.00032,3]
[312047145,1705572641416,-1500.0,0.00032,2]
[312047146,1705572641425,-2000.0,0.0003201,8]
[312047147,1705572641434,-2000.0,0.0003201,8]
[312047148,1705572641443,-2000.0,0.0003202,8]
[312047149,1705572641452,-2000.0,0.0003202,8]
[312047150,1705572641461,-153.29820472,0.00032024,7]
[312047151,1705572641470,-2000.0,0.0003203,8]
[312047152,1705572641479,-2000.0,0.0003203,8]
[312047153,1705572641488,-92970.17385904,0.00032038,2]
[312047154,1705572641498,-260155.51939922,0.00032038,2]
[312047155,1705572641506,-151.0,0.00032038,2]
[312047156,1705572641515,-151.0,0.00032038,2]
[312047157,1705572641525,-151.0,0.00032038,2]
[312047158,1705572641534,-151.0,0.00032038,2]
[312047159,1705572641543,-152.118286,0.00032038,2]
[312047160,1705572641552,-153.756851,0.00032038,2]
[312047161,1705572641561,-153.083675,0.00032038,2]
[312047162,1705572641571,-151.0,0.00032038,2]
[312047163,1705572641581,-151.0,0.00032038,2]
[312047164,1705572641590,-151.0,0.00032038,2]
[312047165,1705572641599,-299.196712,0.00032038,2]
[312047166,1705572641608,-700.883153,0.00032038,2]
[312047167,1705572641618,-700.883153,0.00032038,2]
[312047168,1705572641627,-700.883153,0.00032038,2]
[312047169,1705572641698,-700.883153,0.00032038,2]
[312047170,1705572641708,-987.002553,0.00032038,2]
[312047171,1705572641717,-987.002553,0.00032038,2]
[312047172,1705572641726,-987.002553,0.00032038,2]
[312047173,1705572641735,-987.002553,0.00032038,2]
[312047174,1705572641744,-151.0,0.00032038,2]
[312047175,1705572641754,-249.0,0.00032038,2]
[312047176,1705572641764,-2000.0,0.0003204,8]
[312047177,1705572641773,-2000.0,0.0003204,8]
[312047178,1705572641783,-2000.0,0.0003205,8]
[312047179,1705572641792,-2000.0,0.0003205,8]
[312047180,1705572641802,-2000.0,0.0003206,8]
[312047181,1705572641811,-2000.0,0.0003206,8]
[312047182,1705572641820,-2000.0,0.0003207,8]
[312047183,1705572641830,-2000.0,0.0003207,8]
[312047184,1705572641839,-2000.0,0.0003208,8]
[312047185,1705572641849,-2000.0,0.0003208,8]
[312047186,1705572641858,-620.00207998,0.00032089,2]
[312047187,1705572641867,-2000.0,0.0003209,8]
[312047188,1705572641877,-2000.0,0.0003209,8]
[312047189,1705572641887,-2000.0,0.000321,8]
[312047190,1705572641897,-2000.0,0.000321,8]
[312047191,1705572641906,-2000.0,0.0003211,8]
[312047192,1705572641916,-2000.0,0.0003211,8]
[312047193,1705572641925,-2000.0,0.0003212,8]
[312047194,1705572641935,-2000.0,0.0003212,8]
[312047195,1705572641944,-2000.0,0.0003213,8]
[312047196,1705572641954,-2000.0,0.0003213,8]
[312047197,1705572641963,-153.29820472,0.00032134,7]
[312047198,1705572641973,-178.35667624,0.00032135,7]
[312047199,1705572641983,-2000.0,0.0003214,8]
[312047200,1705572641992,-2000.0,0.0003214,8]
[312047201,1705572642002,-2000.0,0.0003215,8]
[312047202,1705572642011,-2000.0,0.0003215,8]
[312047203,1705572642020,-2000.0,0.0003216,8]
[312047204,1705572642029,-2000.0,0.0003216,8]
[312047205,1705572642039,-2000.0,0.0003217,8]
[312047206,1705572642048,-2000.0,0.0003217,8]
[312047207,1705572642058,-2000.0,0.0003218,8]
[312047208,1705572642068,-2000.0,0.0003218,8]
[312047209,1705572642077,-2000.0,0.0003219,8]
[312047210,1705572642087,-2844.251759,0.0003219,8]
[312047211,1705572642096,-2000.0,0.000322,8]
[312047212,1705572642105,-200.41,0.000322,4]
[312047213,1705572642115,-2000.0,0.0003221,9]
[312047214,1705572642124,-2000.0,0.0003222,9]
[312047215,1705572642133,-2000.0,0.0003223,9]
[312047216,1705572642142,-2000.0,0.0003224,9]
[312047217,1705572642152,-2794.066118,0.0003225,9]
[312047218,1705572642162,-372.0,0.0003227,30]
[312047219,1705572642172,-372.0,0.0003228,30]
[312047220,1705572642181,-372.0,0.0003229,30]
[312047221,1705572642190,-154.81467579,0.00032328,7]
[312047222,1705572642202,-178.35667624,0.00032429,7]
[312047223,1705572642211,-271.63,0.0003245,30]
[312047224,1705572642221,-150.5,0.0003246,30]
[312047225,1705572642230,-150.5,0.0003247,30]
[312047226,1705572642240,-178.35667624,0.00032471,7]
[312047227,1705572642250,-188452.04279927,0.000325,20]
[312047228,1705572642509,-2115.64278898,0.000325,20]
[312047229,1705572642522,-2203.64566873,0.000325,20]
[312047230,1705572642538,-15802.74860452,0.000325,20]
[312047323,1705573746227,-1241.70084198,0.00023404,2]
[312047324,1705573746249,-2226.19575142,0.00023405,2]
[312047325,1705573746272,-164.5326913,0.00023406,2]
[312047326,1705573746293,-342.87850745,0.00023506,2]
[312047327,1705573746314,-528.65888712,0.00023506,2]
[312047382,1705573832406,-5219.2,0.00023496,3]
[312047384,1705573832416,-4349.34,0.00023496,3]
[312047386,1705573832425,-15210.0058104,0.00023505,2]
[312047388,1705573832435,-98.23441284,0.00023506,2]
[312047390,1705573832444,-10293.9434922,0.00023506,2]
[312047392,1705573832453,-154.9690062,0.00023506,2]
[312047394,1705573832462,-620.26741538,0.00023506,2]
[312047396,1705573832472,-37028.36729735,0.00023506,2]
[312047410,1705573838421,-500.0,0.00023505,2]
[312047412,1705573838430,-500.0,0.00023505,2]
[312047414,1705573838439,-500.0,0.00023505,2]
[312047415,1705573838448,-500.0,0.00023505,2]
[312047417,1705573838457,-500.0,0.00023505,2]
[312047418,1705573838467,-500.0,0.00023505,2]
[312047419,1705573838476,-500.0,0.00023505,2]
[312047420,1705573838485,-226.25317498,0.00023505,2]
[312047421,1705573838494,-500.0,0.00023505,2]
[312047422,1705573838503,-437.70726849,0.00023505,2]
[312047423,1705573838512,-500.0,0.00023505,2]
[312047424,1705573838521,-500.0,0.00023505,2]
[312047425,1705573838530,-500.0,0.00023505,2]
[312047426,1705573838539,-500.0,0.00023505,2]
[312047427,1705573838548,-500.0,0.00023505,2]
[312047428,1705573838557,-500.0,0.00023505,2]
[312047429,1705573838570,-500.0,0.00023505,2]
[312047430,1705573838579,-460.93152549,0.00023505,2]
[312047431,1705573838589,-160.56503818,0.00023505,2]
[312047432,1705573838598,-500.0,0.00023505,2]
[312047433,1705573838608,-1.67009854,0.00023505,2]
[312047434,1705573838619,-256.346,0.00023505,2]
[312047435,1705573838631,-241.98390146,0.00023505,2]
[312047436,1705573838641,-500.0,0.00023505,2]
[312047437,1705573838652,-400.0,0.00023505,2]
[312047438,1705573838661,-500.0,0.00023505,2]
[312047439,1705573838670,-500.0,0.00023505,2]
[312047440,1705573838679,-500.0,0.00023505,2]
[312047441,1705573838688,-500.0,0.00023505,2]
[312047442,1705573838697,-500.0,0.00023505,2]
[312047443,1705573838706,-500.0,0.00023505,2]
[312047444,1705573838715,-500.0,0.00023505,2]
[312047445,1705573838723,-500.0,0.00023505,2]
[312047446,1705573838734,-500.0,0.00023505,2]
[312047447,1705573838744,-500.0,0.00023505,2]
[312047448,1705573838753,-500.0,0.00023505,2]
[312047449,1705573838762,-500.0,0.00023505,2]
[312047450,1705573838771,-246962.48043628,0.00023506,2]
[312047451,1705573838781,-1109.01672269,0.00023506,2]
[312047452,1705573838791,-169.27764469,0.00025237,2]
[312047453,1705573838799,-470.34681749,0.00025337,2]
[312047454,1705573838809,-1244.97488453,0.00025338,2]
[312047455,1705573838818,-2242.39866587,0.0002534,5]
[312047456,1705573838827,-162.51547,0.00025628,2]
[312047457,1705573838836,-166.666666,0.00025754,2]
[312047458,1705573838845,-200.0,0.00025854,7]
[312047459,1705573838854,-1167.8481603,0.00025888,2]
[312047460,1705573838863,-2107.37177409,0.00026124,2]
[312047461,1705573838872,-184.41586934,0.00026124,2]
[312047462,1705573838882,-1377.98576047,0.00026124,2]
[312047463,1705573838891,-3902.52787846,0.00026125,2]
[312047464,1705573838900,-1694.70771461,0.00026125,2]
[312047465,1705573838910,-166.666666,0.00026456,2]
[312047466,1705573838920,-170.257386,0.00027108,2]
[312047467,1705573838929,-166.666666,0.00027158,2]
[312047468,1705573838938,-166.666666,0.00027861,2]
[312047469,1705573838947,-154.9690062,0.00028,10]
[312047470,1705573838955,-290.00241025,0.00028,2]
[312047471,1705573838964,-6547.19131506,0.00028244,4]
[312047472,1705573838973,-6086.81589006,0.00028244,4]
[312047473,1705573838982,-26322.73181139,0.00028244,4]
[312047474,1705573838991,-33031.51162548,0.00028244,4]
[312047475,1705573839000,-280.0,0.0002844,15]
[312047476,1705573839009,-166.666666,0.00028563,2]
[312047477,1705573839018,-154.9690062,0.00029,2]
[312047478,1705573839027,-2455.73923901,0.00029,2]
[312047479,1705573839036,-1112.81666709,0.00029246,2]
[312047480,1705573839045,-166.666666,0.00029265,2]
[312047481,1705573839054,-682.23213824,0.0003,3]
[312047482,1705573839063,-154.9690062,0.0003,4]
[312047483,1705573839072,-243.91959085,0.0003,4]
[312047484,1705573839081,-201.08171049,0.0003,4]
[312047485,1705573839090,-154.9690062,0.0003,2]
[312047486,1705573839099,-231.70259256,0.0003,4]
[312047487,1705573839108,-640.81580837,0.0003,4]
[312047488,1705573839116,-464.23133021,0.0003,2]
[312047489,1705573839125,-687.89788967,0.0003,4]
[312047490,1705573839135,-306.0,0.0003,2]
[312047491,1705573839144,-1993.87819492,0.0003008,2]
[312047492,1705573839154,-164.5102318,0.00030137,2]
[312047493,1705573839163,-605.555131,0.00030137,2]
[312047494,1705573839172,-603.28987183,0.0003019,2]
[312047495,1705573839181,-161.3599207,0.0003019,2]
[312047496,1705573839190,-855.55423358,0.0003019,2]
[312047497,1705573839199,-161.3113195,0.0003019,2]
[312047498,1705573839208,-172.3685348,0.0003019,2]
[312047499,1705573839217,-484.0797621,0.0003019,2]
[312047500,1705573839226,-1550.870845,0.000305,2]
[312047501,1705573839236,-605.555131,0.00030959,2]
[312047502,1705573839246,-261.0,0.0003097,30]
[312047503,1705573839257,-261.0,0.0003098,30]
[312047504,1705573839267,-7000.0,0.0003099,2]
[312047505,1705573839277,-261.0,0.0003099,30]
[312047506,1705573839286,-348.36157568,0.00030999,2]
[312047507,1705573839295,-97008.73081987,0.00031,4]
[312047508,1705573839304,-155.0,0.0003101,2]
[312047509,1705573839313,-391.0,0.00031284,15]
[312047510,1705573839322,-1500.0,0.000315,2]
[312047511,1705573839331,-605.555131,0.00031781,2]
[312047512,1705573839340,-2000.0,0.00032,8]
[312047513,1705573839349,-2000.0,0.00032,8]
[312047514,1705573839359,-200.0,0.00032,4]
[312047515,1705573839369,-705.0604155,0.0003201,3]
[312047516,1705573839379,-2000.0,0.0003201,8]
[312047517,1705573839388,-2000.0,0.0003201,8]
[312047518,1705573839397,-2000.0,0.0003202,8]
[312047519,1705573839407,-2000.0,0.0003202,8]
[312047520,1705573839417,-2000.0,0.0003203,8]
[312047521,1705573839427,-2000.0,0.0003203,8]
[312047522,1705573839438,-2000.0,0.0003204,8]
[312047523,1705573839447,-2000.0,0.0003204,8]
[312047524,1705573839456,-430.80459298,0.00032049,4]
[312047525,1705573839465,-500.0,0.00032049,4]
[312047526,1705573839474,-500.0,0.00032049,4]
[312047527,1705573839483,-500.0,0.00032049,4]
[312047528,1705573839492,-644.1938276,0.00032049,4]
[312047529,1705573839501,-500.0,0.00032049,4]
[312047530,1705573839510,-500.0,0.00032049,4]
[312047531,1705573839520,-500.0,0.00032049,4]
[312047532,1705573839529,-500.0,0.00032049,4]
[312047533,1705573839538,-500.0,0.00032049,4]
[312047534,1705573839547,-500.0,0.00032049,4]
[312047535,1705573839556,-500.0,0.00032049,4]
[312047536,1705573839569,-429.4257004,0.00032049,4]
[312047537,1705573839578,-500.0,0.00032049,4]
[312047538,1705573839587,-500.0,0.00032049,4]
[312047539,1705573839596,-500.0,0.00032049,4]
[312047540,1705573839605,-500.0,0.00032049,4]
[312047541,1705573839615,-500.0,0.00032049,4]
[312047542,1705573839624,-500.0,0.00032049,4]
[312047543,1705573839633,-500.0,0.00032049,4]
[312047544,1705573839644,-283.98787207,0.00032049,4]
[312047545,1705573839654,-500.0,0.00032049,4]
[312047546,1705573839663,-2000.0,0.0003205,8]
[312047547,1705573839675,-2000.0,0.0003205,8]
[312047548,1705573839684,-2000.0,0.0003206,8]
[312047549,1705573839692,-2000.0,0.0003206,8]
[312047550,1705573839701,-2000.0,0.0003207,8]
[312047551,1705573839710,-2000.0,0.0003207,8]
[312047552,1705573839719,-2000.0,0.0003208,8]
[312047553,1705573839729,-2000.0,0.0003208,8]
[312047554,1705573839739,-2000.0,0.0003209,8]
[312047555,1705573839748,-2000.0,0.0003209,8]
[312047556,1705573839757,-2000.0,0.000321,8]
[312047557,1705573839766,-2000.0,0.000321,8]
[312047558,1705573839775,-2000.0,0.0003211,8]
[312047559,1705573839785,-2000.0,0.0003211,8]
[312047560,1705573839794,-2000.0,0.0003212,8]
[312047561,1705573839803,-2000.0,0.0003212,8]
[312047562,1705573839813,-2000.0,0.0003213,8]
[312047563,1705573839822,-2000.0,0.0003213,8]
[312047564,1705573839833,-2000.0,0.0003214,8]
[312047565,1705573839842,-2000.0,0.0003214,8]
[312047566,1705573839851,-2000.0,0.0003215,8]
[312047567,1705573839860,-449.66254877,0.0003215,8]
[312047666,1705573841392,-2001.42015246,0.0003196,2]
[312047702,1705573843411,-500.0,0.00023505,2]
[312047703,1705573843420,-407.62073107,0.00023505,2]
[312047704,1705573843431,-61.92680236,0.00023505,2]
[312047705,1705573843442,-500.0,0.00023505,2]
[312047706,1705573843451,-694.86365141,0.0003196,2]
[312047719,1705573951668,166.666666,0.00021918,2]
[312047723,1705573985096,165.694862,0.00021612,2]
[312047725,1705573998670,620.26741538,0.00021918,2]
[312047726,1705574001974,85.25966557,0.00021918,2]
[312047742,1705574722380,1112.81666709,0.00019643,2]
[312047744,1705574731111,-643.9449239,0.00020345,2]
[312047745,1705574731132,-561.25963229,0.00020346,2]
[312047746,1705574731151,-260.95401004,0.00020346,2]
[312047747,1705574731171,-925.77448115,0.00020346,2]
[312047753,1705574850086,-265.2811879,0.00020339,2]
[312047754,1705574850106,-260.95401004,0.0002034,2]
[312047755,1705574850128,-13711.08982792,0.0002034,2]
[312047756,1705574850147,-3743.44064302,0.00020341,2]
[312047757,1705574850168,-902.97118459,0.00020342,2]
[312047758,1705574850188,-1109.01672269,0.00020346,2]
[312047759,1705574850207,-165.209326,0.00020358,2]
[312047760,1705574850227,-250.0,0.00020518,2]
[312047761,1705574850247,-327.24959811,0.00021506,2]
[312047762,1705574850267,-1815.75822214,0.00021507,2]
[312047763,1705574850287,-492.7898727,0.0002179,2]
[312047764,1705574850307,-560.83894059,0.00021827,2]
[312047765,1705574850327,-642.84321036,0.00021827,2]
[312047766,1705574850347,-17099.15837022,0.00021828,2]
[312047767,1705574854211,-7800.84162978,0.00021828,2]
[312047768,1705574854235,-166.666666,0.00021918,2]
[312047769,1705574854258,-622.21111377,0.00021918,2]
[312047770,1705574854278,-154.95351395,0.00021918,2]
[312047771,1705574854297,-425.62034809,0.00022,2]
[312047772,1705574854316,-3959.1053351,0.00022,2]
[312047773,1705574854335,-154.95351395,0.00022,2]
[312047774,1705574854355,-200.0,0.0002238,7]
[312047775,1705574854373,-166.666666,0.00022431,2]
[312047776,1705574854392,-1040.58730336,0.00022501,2]
[312047777,1705574955146,-2391.8053,0.000225,2]
[312047778,1705574970094,-1824.16304325,0.000225,2]
[312047779,1705574970114,-513.52148974,0.00022501,2]
[312047780,1705574970133,-154.93802479,0.00022501,2]
[312047781,1705574970157,-218.73991844,0.00022501,2]
[312047782,1705574970178,-3083.94839539,0.0002327,2]
[312047783,1705574970199,-237.43058786,0.00023503,2]
[312047784,1705574970219,-301.45322004,0.00023503,2]
[312047785,1705574970239,-525.86975939,0.00023503,2]
[312047786,1705574970259,-1252.01139802,0.00023504,2]
[312047787,1705574970278,-155.0,0.00023504,2]
[312047788,1705574970298,-155.17257891,0.00023505,2]
[312047789,1705574970317,-8265.1944914,0.00023506,2]
[312047849,1705575034053,-222.50008915,0.000225,2]
[312047852,1705575034063,-2014.54233428,0.00023506,2]
[312047855,1705575034072,-386.12132242,0.00023506,2]
[312047857,1705575034081,-166.666666,0.00023697,2]
[312047859,1705575034090,-954.13021078,0.00024,2]
[312047861,1705575034100,-1806.6002496,0.00024264,2]
[312047862,1705575034109,-166.666666,0.00024343,2]
[312047863,1705575034118,-166.666666,0.00024989,2]
[312047864,1705575034127,-166.666666,0.00025635,2]
[312047866,1705575034136,-526.29712741,0.0002628,2]
[312047868,1705575034145,-166.666666,0.00026281,2]
[312047869,1705575034154,-892.29132121,0.000264,2]
[312047870,1705575034163,-166.666666,0.00026927,2]
[312047871,1705575034173,-633.61456606,0.0002772,2]
[312047872,1705575034182,-274.42712104,0.00028,2]
[312047873,1705575034191,-290.00241025,0.00028,2]
[312047874,1705575034200,-482.76334709,0.00028241,2]
[312047875,1705575034209,-184.20541836,0.00028241,2]
[312047876,1705575034218,-260.6597026,0.00028242,2]
[312047877,1705575034227,-265.0651378,0.00028242,2]
[312047878,1705575034237,-425.62034809,0.00028242,2]
[312047879,1705575034246,-3738.26764705,0.00028243,2]
[312047880,1705575034256,-902.69207927,0.00028243,2]
[312047881,1705575034265,-279.39513093,0.00028243,2]
[312047882,1705575034275,-13605.71789968,0.00028243,2]
[312047883,1705575034284,-12329.18312158,0.00028244,4]
[312047884,1705575034293,-409.19945718,0.00028244,4]
[312047885,1705575034302,-1849.06353827,0.00028244,4]
[312047886,1705575034312,-15363.79888135,0.00028311,4]
[312047887,1705575034321,-2455.73923901,0.00029,2]
[312047888,1705575034330,-154.9690062,0.00029,2]
[312047889,1705575034340,-620.6807283,0.00029106,2]
[312047890,1705575034349,-620.82991808,0.00029366,2]
[312047891,1705575034358,-213.00013457,0.000295,30]
[312047892,1705575034367,-1500.0,0.000295,2]
[312047893,1705575034376,-5000.0,0.00029863,2]
[312047894,1705575034385,-155.0,0.000299,2]
[312047895,1705575034395,-4532.45860928,0.0002992,2]
[312047896,1705575034404,-682.23213824,0.0003,3]
[312047897,1705575034413,-233.57305638,0.0003,4]
[312047898,1705575034422,-464.23133021,0.0003,2]
[312047899,1705575034432,-154.9690062,0.0003,2]
[312047900,1705575034441,-243.91959085,0.0003,4]
[312047901,1705575034452,-687.89788967,0.0003,4]
[312047902,1705575034461,-201.08171049,0.0003,4]
[312047903,1705575034470,-640.81580837,0.0003,4]
[312047904,1705575034480,-9982.19472582,0.0003,2]
[312047905,1705575034489,-231.70259256,0.0003,4]
[312047906,1705575034499,-2491.60757104,0.0003,4]
[312047907,1705575034508,-196.0,0.0003,2]
[312047908,1705575034518,-500.0,0.00030136,2]
[312047909,1705575034527,-153.0,0.00030137,2]
[312047910,1705575034536,-153.0,0.00030137,2]
[312047911,1705575034547,-399.4977477,0.00030137,2]
[312047912,1705575034557,-615.647716,0.00030137,2]
[312047913,1705575034566,-163.139514,0.00030137,2]
[312047914,1705575034576,-500.0,0.00030273,2]
[312047915,1705575034585,-347.09336747,0.00030321,2]
[312047916,1705575034594,-2791.70735895,0.00030321,2]
[312047977,1705575039301,-2109.91,0.0002991,3]
[312047978,1705575039311,-6857.73507039,0.00030321,2]
[312047979,1705575039321,-424.86412083,0.00030335,2]
[312047980,1705575039331,-167.13604108,0.0003041,2]
[312047981,1705575039339,-1500.0,0.000305,2]
[312047982,1705575039349,-620.03403642,0.00030561,2]
[312047983,1705575039358,-200.0,0.00030799,15]
[312047984,1705575039367,-620.0414959,0.00030835,2]
[312047985,1705575039376,-175.21,0.00030899,2]
[312047986,1705575039385,-175.21,0.00030899,2]
[312047987,1705575039395,-175.21,0.00030899,2]
[312047988,1705575039404,-175.21,0.00030899,2]
[312047990,1705575039413,-175.21,0.00030899,2]
[312047991,1705575039421,-500.0,0.00030899,2]
[312047992,1705575039431,-500.0,0.00030899,2]
[312047994,1705575039440,-500.0,0.00030899,2]
[312047995,1705575039450,-500.0,0.00030899,2]
[312047996,1705575039459,-500.0,0.00030899,2]
[312047997,1705575039468,-500.0,0.00030899,2]
[312047998,1705575039477,-500.0,0.00030899,2]
[312047999,1705575039487,-500.0,0.00030899,2]
[312048000,1705575039497,-203.28045137,0.00030899,2]
[312048001,1705575039506,-500.0,0.00030899,2]
[312048002,1705575039515,-500.0,0.00030899,2]
[312048003,1705575039524,-190.86426003,0.00030899,2]
[312048004,1705575039533,-544.68988124,0.00030899,2]
[312048005,1705575039542,-500.0,0.00030899,2]
[312048006,1705575039551,-500.0,0.00030899,2]
[312048007,1705575039561,-500.0,0.00030899,2]
[312048008,1705575039570,-500.0,0.00030899,2]
[312048009,1705575039579,-500.0,0.00030899,2]
[312048010,1705575039588,-596.3390229,0.00030899,2]
[312048011,1705575039597,-500.0,0.00030899,2]
[312048012,1705575039605,-500.0,0.00030899,2]
[312048013,1705575039614,-500.0,0.00030899,2]
[312048014,1705575039623,-500.0,0.00030899,2]
[312048015,1705575039632,-500.0,0.00030899,2]
[312048016,1705575039641,-500.0,0.00030899,2]
[312048017,1705575039651,-500.0,0.00030899,2]
[312048018,1705575039660,-500.0,0.00030899,2]
[312048019,1705575039669,-500.0,0.00030899,2]
[312048020,1705575039678,-500.0,0.00030899,2]
[312048021,1705575039687,-500.0,0.00030899,2]
[312048022,1705575039698,-500.0,0.00030899,2]
[312048023,1705575039707,-500.0,0.00030899,2]
[312048024,1705575039716,-500.0,0.00030899,2]
[312048025,1705575039725,-500.0,0.00030899,2]
[312048026,1705575039735,-500.0,0.00030899,2]
[312048027,1705575039745,-500.0,0.00030899,2]
[312048028,1705575039754,-500.0,0.00030899,2]
[312048029,1705575039763,-500.0,0.00030899,2]
[312048030,1705575039773,-500.0,0.00030899,2]
[312048031,1705575039782,-261.88164415,0.00030899,2]
[312048032,1705575039791,-500.0,0.00030899,2]
[312048033,1705575039800,-500.0,0.00030899,2]
[312048034,1705575039810,-500.0,0.00030899,2]
[312048035,1705575039818,-500.0,0.00030899,2]
[312048036,1705575039827,-500.0,0.00030899,2]
[312048037,1705575039837,-500.0,0.00030899,2]
[312048038,1705575039846,-500.0,0.00030899,2]
[312048039,1705575039937,-470.82806334,0.00030899,2]
[312048040,1705575039947,-500.0,0.00030899,2]
[312048041,1705575039956,-500.0,0.00030899,2]
[312048042,1705575039965,-500.0,0.00030899,2]
[312048043,1705575039974,-500.0,0.00030899,2]
[312048044,1705575039984,-500.0,0.00030899,2]
[312048045,1705575039993,-241.248419,0.00030899,2]
[312048046,1705575040005,-500.0,0.00030899,2]
[312048047,1705575040015,-411.29639005,0.00030899,2]
[312048048,1705575040024,-500.0,0.00030899,2]
[312048049,1705575040033,-500.0,0.00030899,2]
[312048050,1705575040042,-164.51855601,0.00030899,2]
[312048051,1705575040051,-705.0604155,0.000309,3]
[312048052,1705575040060,-153373.02250789,0.000309,2]
[312048053,1705575040069,-615.647716,0.00030959,2]
[312048054,1705575040078,-372.0,0.0003097,30]
[312048055,1705575040088,-372.0,0.0003098,30]
[312048056,1705575040098,-372.0,0.0003099,30]
[312048057,1705575040107,-97008.73081987,0.00031,4]
[312048058,1705575040117,-1000.0,0.00031,31]
[312048059,1705575040126,-163.139514,0.00031022,2]
[312048060,1705575040134,-155.0,0.0003127,2]
[312048061,1705575040143,-3481.93045804,0.00031319,4]
[312048062,1705575040152,-1500.0,0.000315,2]
[312048063,1705575040161,-242.743,0.00031543,2]
[312048064,1705575040170,-163.0,0.00031543,2]
[312048065,1705575040179,-202.711,0.00031543,2]
[312048066,1705575040188,-615.647716,0.00031781,2]
[312048067,1705575040198,-163.139514,0.00031907,2]
[312048068,1705575040207,-1400.0,0.00031917,2]
[312048069,1705575040217,-271.63,0.00031929,30]
[312048070,1705575040226,-150.5,0.00031939,30]
[312048071,1705575040235,-2907.63791919,0.00031949,4]
[312048072,1705575040244,-150.5,0.00031949,30]
[312048073,1705575040253,-612.17306485,0.00031958,2]
[312048074,1705575040262,-286.06712723,0.00031958,4]
[312048075,1705575040272,-155.0,0.00031958,4]
[312048076,1705575040281,-19846.52895814,0.00031958,4]
[312048077,1705575040290,-213.28698836,0.00031959,10]
[312048078,1705575040299,-688.82709207,0.00031959,4]
[312048079,1705575040308,-20853.11941142,0.00031959,4]
[312048080,1705575040317,-450.93567932,0.00031959,4]
[312048081,1705575040326,-500.0,0.00031959,4]
[312048082,1705575040335,-500.0,0.00031959,4]
[312048083,1705575040344,-500.0,0.00031959,4]
[312048084,1705575040353,-500.0,0.00031959,4]
[312048085,1705575040362,-500.0,0.00031959,4]
[312048086,1705575040371,-564.65540394,0.00031959,4]
[312048087,1705575040381,-229.4257004,0.00031959,4]
[312048088,1705575040390,-500.0,0.00031959,4]
[312048089,1705575040399,-500.0,0.00031959,4]
[312048090,1705575040408,-500.0,0.00031959,4]
[312048091,1705575040417,-500.0,0.00031959,4]
[312048092,1705575040426,-500.0,0.00031959,4]
[312048093,1705575040435,-500.0,0.00031959,4]
[312048094,1705575040444,-383.98787207,0.00031959,4]
[312048095,1705575040454,-500.0,0.00031959,4]
[312048096,1705575040463,-500.0,0.00031959,4]
[312048097,1705575040472,-500.0,0.00031959,4]
[312048098,1705575040482,-500.0,0.00031959,4]
[312048099,1705575040491,-500.0,0.00031959,4]
[312048100,1705575040500,-500.0,0.00031959,4]
[312048101,1705575040509,-499.99999999,0.00031959,4]
[312048102,1705575040518,-372.62939137,0.00031959,4]
[312048103,1705575040527,-450.93567932,0.00031959,4]